[Event "Late-Titled-Tuesday-Blitz-May-28-2024"]
[Site "Chess.com"]
[Date "2024.05.28"]
[Round "1"]
[White "bancsoo"]
[Black "colegiodemadrid"]
[Result "1-0"]
[WhiteElo "2929"]
[BlackElo "2504"]
[TimeControl "180+1"]
[EndTime "14:02:17 PDT"]
[Termination "bancsoo won by resignation"]

1. Nf3 {[%clk 0:02:59.1]} 1... Nf6 {[%clk 0:02:59.9]} 2. g3 {[%clk 0:02:59.2]}
2... g6 {[%clk 0:03:00.2]} 3. Bg2 {[%clk 0:02:58.4]} 3... Bg7 {[%clk 0:03:01.1]}
4. d4 {[%clk 0:02:59]} 4... O-O {[%clk 0:03:01.3]} 5. c4 {[%clk 0:02:59.3]} 5...
d6 {[%clk 0:03:01.8]} 6. Nc3 {[%clk 0:02:59.4]} 6... Bf5 {[%clk 0:03:02.2]} 7.
Nh4 {[%clk 0:02:59]} 7... Bc8 {[%clk 0:03:01.2]} 8. O-O {[%clk 0:02:59]} 8... e5
{[%clk 0:03:01.3]} 9. Nf3 {[%clk 0:02:56.5]} 9... Nc6 {[%clk 0:02:57.4]} 10.
dxe5 {[%clk 0:02:56.6]} 10... dxe5 {[%clk 0:02:56.4]} 11. Be3 {[%clk 0:02:57.2]}
11... Be6 {[%clk 0:02:45.3]} 12. Qa4 {[%clk 0:02:55.8]} 12... Qe8 {[%clk
0:02:40]} 13. Rfd1 {[%clk 0:02:49.8]} 13... a6 {[%clk 0:02:26.6]} 14. Bc5 {[%clk
0:02:41.4]} 14... h6 {[%clk 0:02:20]} 15. Bxf8 {[%clk 0:02:33.3]} 15... Bxf8
{[%clk 0:02:20.9]} 16. Nd5 {[%clk 0:02:28.9]} 16... Qd8 {[%clk 0:02:05.5]} 17.
Nb6 {[%clk 0:02:22.4]} 1-0

[Event "Late-Titled-Tuesday-Blitz-May-28-2024"]
[Site "Chess.com"]
[Date "2024.05.28"]
[Round "1"]
[White "Konavets"]
[Black "Defend1r"]
[Result "1-0"]
[WhiteElo "3083"]
[BlackElo "2533"]
[TimeControl "180+1"]
[EndTime "14:02:21 PDT"]
[Termination "Konavets won by resignation"]

1. e4 {[%clk 0:02:48]} 1... c5 {[%clk 0:02:59]} 2. Nf3 {[%clk 0:02:32.4]} 2...
d6 {[%clk 0:02:58.9]} 3. Qe2 {[%clk 0:02:29.9]} 3... g6 {[%clk 0:02:57.6]} 4. g3
{[%clk 0:02:28.2]} 4... Bg7 {[%clk 0:02:58]} 5. Bg2 {[%clk 0:02:29]} 5... Nf6
{[%clk 0:02:58.2]} 6. O-O {[%clk 0:02:29.7]} 6... O-O {[%clk 0:02:56.9]} 7. c3
{[%clk 0:02:30.3]} 7... e5 {[%clk 0:02:55.5]} 8. a4 {[%clk 0:02:28.1]} 8... b6
{[%clk 0:02:55.4]} 9. Na3 {[%clk 0:02:28.3]} 9... Ba6 {[%clk 0:02:54.1]} 10. d3
{[%clk 0:02:28.7]} 10... Nc6 {[%clk 0:02:53.4]} 11. Rd1 {[%clk 0:02:29.1]} 11...
Re8 {[%clk 0:02:51.3]} 12. Bg5 {[%clk 0:02:29]} 12... h6 {[%clk 0:02:47.7]} 13.
Bxf6 {[%clk 0:02:29.5]} 13... Bxf6 {[%clk 0:02:48.6]} 14. Nc4 {[%clk 0:02:29.9]}
14... Bg7 {[%clk 0:02:39.1]} 15. Ne3 {[%clk 0:02:28.3]} 15... Ne7 {[%clk
0:02:36.4]} 16. Nd2 {[%clk 0:02:28.1]} 16... Rc8 {[%clk 0:02:32.8]} 17. h4
{[%clk 0:02:28.6]} 17... f5 {[%clk 0:02:31.1]} 18. h5 {[%clk 0:02:29]} 18... f4
{[%clk 0:02:29.6]} 19. Nd5 {[%clk 0:02:29.3]} 19... Nxd5 {[%clk 0:02:28.9]} 20.
exd5 {[%clk 0:02:30.2]} 20... g5 {[%clk 0:02:28.9]} 21. Be4 {[%clk 0:02:29.9]}
21... Rf8 {[%clk 0:02:28.1]} 22. Qg4 {[%clk 0:02:29.1]} 22... Rc7 {[%clk
0:02:26.1]} 23. Qe6+ {[%clk 0:02:29]} 23... Kh8 {[%clk 0:02:25.3]} 24. Qg6
{[%clk 0:02:29.4]} 24... Kg8 {[%clk 0:02:23.7]} 25. Qh7+ {[%clk 0:02:29.7]}
25... Kf7 {[%clk 0:02:23.8]} 26. Bg6+ {[%clk 0:02:30.6]} 1-0

[Event "Late-Titled-Tuesday-Blitz-May-28-2024"]
[Site "Chess.com"]
[Date "2024.05.28"]
[Round "1"]
[White "Truequitos"]
[Black "WolfBaoBaoLang"]
[Result "1-0"]
[WhiteElo "2551"]
[BlackElo "2111"]
[TimeControl "180+1"]
[EndTime "14:02:21 PDT"]
[Termination "Truequitos won by resignation"]

1. Nf3 {[%clk 0:03:00.8]} 1... Nf6 {[%clk 0:03:00.2]} 2. g4 {[%clk 0:03:00.6]}
2... Nxg4 {[%clk 0:02:59.8]} 3. e4 {[%clk 0:03:00.5]} 3... e6 {[%clk 0:02:59]}
4. d4 {[%clk 0:02:59.3]} 4... d5 {[%clk 0:02:58.2]} 5. Nc3 {[%clk 0:02:58]} 5...
dxe4 {[%clk 0:02:57.9]} 6. Nxe4 {[%clk 0:02:58.9]} 6... Nf6 {[%clk 0:02:58.2]}
7. Bd3 {[%clk 0:02:57.2]} 7... Be7 {[%clk 0:02:57.5]} 8. Rg1 {[%clk 0:02:57.2]}
8... Nxe4 {[%clk 0:02:15.5]} 9. Bxe4 {[%clk 0:02:58.1]} 9... g6 {[%clk
0:02:16.2]} 10. Bh6 {[%clk 0:02:51.6]} 10... Bf6 {[%clk 0:01:22.9]} 11. Qd2
{[%clk 0:02:49.4]} 1-0

[Event "Late-Titled-Tuesday-Blitz-May-28-2024"]
[Site "Chess.com"]
[Date "2024.05.28"]
[Round "1"]
[White "temus_galaktionov"]
[Black "lrjchess"]
[Result "1-0"]
[WhiteElo "2874"]
[BlackElo "2477"]
[TimeControl "180+1"]
[EndTime "14:02:24 PDT"]
[Termination "temus_galaktionov won by resignation"]

1. d4 {[%clk 0:03:00]} 1... Nf6 {[%clk 0:02:58.2]} 2. Nf3 {[%clk 0:02:57.2]}
2... g6 {[%clk 0:02:57.5]} 3. c4 {[%clk 0:02:57.2]} 3... d6 {[%clk 0:02:57.8]}
4. Nc3 {[%clk 0:02:57]} 4... Bg7 {[%clk 0:02:58.7]} 5. e4 {[%clk 0:02:56.9]}
5... O-O {[%clk 0:02:59.6]} 6. Be2 {[%clk 0:02:56.8]} 6... c5 {[%clk 0:03:00.3]}
7. d5 {[%clk 0:02:56]} 7... e6 {[%clk 0:03:00.1]} 8. h3 {[%clk 0:02:55.3]} 8...
Re8 {[%clk 0:03:00.1]} 9. O-O {[%clk 0:02:54.9]} 9... exd5 {[%clk 0:03:00.6]}
10. exd5 {[%clk 0:02:55.8]} 10... Ne4 {[%clk 0:03:00.7]} 11. Nxe4 {[%clk
0:02:55.6]} 11... Rxe4 {[%clk 0:03:01.6]} 12. Bd3 {[%clk 0:02:55.1]} 12... Re8
{[%clk 0:03:01]} 13. Qc2 {[%clk 0:02:54.1]} 13... Nd7 {[%clk 0:03:01.2]} 14. Bf4
{[%clk 0:02:53.1]} 14... Ne5 {[%clk 0:03:01.1]} 15. Nxe5 {[%clk 0:02:53.2]}
15... Bxe5 {[%clk 0:03:01.2]} 16. Bxe5 {[%clk 0:02:53.5]} 16... Rxe5 {[%clk
0:03:01.4]} 17. Rae1 {[%clk 0:02:54.1]} 17... Rxe1 {[%clk 0:02:56.1]} 18. Rxe1
{[%clk 0:02:55]} 18... Bd7 {[%clk 0:02:56.6]} 19. Qc3 {[%clk 0:02:47.9]} 19...
Qg5 {[%clk 0:02:54.8]} 20. Bf1 {[%clk 0:02:46.3]} 20... b6 {[%clk 0:02:51.6]}
21. g3 {[%clk 0:02:43.8]} 21... Re8 {[%clk 0:02:49.2]} 22. h4 {[%clk 0:02:41.6]}
22... Qd8 {[%clk 0:02:46.9]} 23. Rxe8+ {[%clk 0:02:32.2]} 23... Qxe8 {[%clk
0:02:46.9]} 24. h5 {[%clk 0:02:32.5]} 24... gxh5 {[%clk 0:02:41]} 25. Qf6 {[%clk
0:02:31.4]} 25... Qe5 {[%clk 0:02:40.3]} 26. Qd8+ {[%clk 0:02:11.5]} 26... Kg7
{[%clk 0:02:38.6]} 27. Qxd7 {[%clk 0:02:10.3]} 1-0

[Event "Late-Titled-Tuesday-Blitz-May-28-2024"]
[Site "Chess.com"]
[Date "2024.05.28"]
[Round "1"]
[White "Hirna2005"]
[Black "terrortoast"]
[Result "1-0"]
[WhiteElo "2367"]
[BlackElo "2624"]
[TimeControl "180+1"]
[EndTime "14:02:49 PDT"]
[Termination "Hirna2005 won by resignation"]

1. e4 {[%clk 0:03:00.9]} 1... c6 {[%clk 0:03:00.1]} 2. Nc3 {[%clk 0:03:00.1]}
2... d5 {[%clk 0:03:00.4]} 3. Nf3 {[%clk 0:02:59.2]} 3... dxe4 {[%clk
0:03:00.8]} 4. Nxe4 {[%clk 0:02:58.6]} 4... Nf6 {[%clk 0:03:01.7]} 5. Qe2 {[%clk
0:02:57]} 5... Nxe4 {[%clk 0:03:02.1]} 6. Qxe4 {[%clk 0:02:56.2]} 6... Be6
{[%clk 0:03:03]} 7. Bd3 {[%clk 0:02:39.1]} 7... Nd7 {[%clk 0:03:01]} 8. O-O
{[%clk 0:02:37.9]} 8... Nc5 {[%clk 0:03:01.2]} 9. Qe2 {[%clk 0:02:37.9]} 9...
Nxd3 {[%clk 0:03:01.6]} 10. cxd3 {[%clk 0:02:37.4]} 10... Bf5 {[%clk 0:03:01]}
11. d4 {[%clk 0:02:36.3]} 11... e6 {[%clk 0:03:01.3]} 12. b3 {[%clk 0:02:33.5]}
12... Be7 {[%clk 0:03:00.8]} 13. Bb2 {[%clk 0:02:33.3]} 13... O-O {[%clk
0:03:01.2]} 14. Ne5 {[%clk 0:02:28.4]} 14... a5 {[%clk 0:02:57]} 15. g4 {[%clk
0:02:20.3]} 15... Bg6 {[%clk 0:02:55.1]} 16. f4 {[%clk 0:02:20.2]} 16... Qc8
{[%clk 0:02:48.6]} 17. f5 {[%clk 0:02:14.6]} 17... exf5 {[%clk 0:02:44.8]} 18.
Nxg6 {[%clk 0:02:14.8]} 18... hxg6 {[%clk 0:02:42.5]} 19. Qxe7 {[%clk
0:02:14.4]} 19... fxg4 {[%clk 0:02:42.8]} 20. Rae1 {[%clk 0:02:10.2]} 20... a4
{[%clk 0:02:41.8]} 21. Ba3 {[%clk 0:02:04.6]} 21... Rd8 {[%clk 0:02:17.6]} 22.
Rxf7 {[%clk 0:01:58.4]} 1-0

[Event "Late-Titled-Tuesday-Blitz-May-28-2024"]
[Site "Chess.com"]
[Date "2024.05.28"]
[Round "1"]
[White "grozdanovic_a"]
[Black "Maikrosoft63"]
[Result "0-1"]
[WhiteElo "2310"]
[BlackElo "2608"]
[TimeControl "180+1"]
[EndTime "14:02:56 PDT"]
[Termination "Maikrosoft63 won by resignation"]

1. e4 {[%clk 0:03:00.9]} 1... c5 {[%clk 0:02:59]} 2. Nf3 {[%clk 0:03:01.2]} 2...
Nc6 {[%clk 0:02:55.2]} 3. g3 {[%clk 0:03:00.1]} 3... g6 {[%clk 0:02:51.8]} 4.
Bg2 {[%clk 0:03:00]} 4... Bg7 {[%clk 0:02:52.5]} 5. O-O {[%clk 0:03:00.2]} 5...
e6 {[%clk 0:02:50.1]} 6. d3 {[%clk 0:02:59.7]} 6... Nge7 {[%clk 0:02:50.1]} 7.
c3 {[%clk 0:02:59.9]} 7... O-O {[%clk 0:02:50.7]} 8. Be3 {[%clk 0:03:00.1]} 8...
b6 {[%clk 0:02:50.2]} 9. Nbd2 {[%clk 0:03:00.2]} 9... Ba6 {[%clk 0:02:46.1]} 10.
Qe2 {[%clk 0:02:55.8]} 10... d5 {[%clk 0:02:44.5]} 11. exd5 {[%clk 0:02:50.5]}
11... exd5 {[%clk 0:02:39.5]} 12. Rad1 {[%clk 0:02:37.1]} 12... Nf5 {[%clk
0:02:37.7]} 13. Nb1 {[%clk 0:02:29.1]} 13... Re8 {[%clk 0:02:32.3]} 14. Qd2
{[%clk 0:02:28]} 14... Nxe3 {[%clk 0:02:30.6]} 15. fxe3 {[%clk 0:02:28.7]} 15...
Bh6 {[%clk 0:02:24.7]} 16. Rfe1 {[%clk 0:02:27.6]} 16... d4 {[%clk 0:02:17]} 17.
cxd4 {[%clk 0:02:27.6]} 17... cxd4 {[%clk 0:02:16.5]} 18. Nxd4 {[%clk
0:02:15.4]} 18... Nxd4 {[%clk 0:02:14.9]} 19. Bxa8 {[%clk 0:02:16]} 19... Qxa8
{[%clk 0:02:14.4]} 20. Qf2 {[%clk 0:02:07.8]} 20... Nf3+ {[%clk 0:02:12.8]} 21.
Kf1 {[%clk 0:02:07.5]} 21... Nxe1 {[%clk 0:02:10.9]} 22. Rxe1 {[%clk 0:02:03.8]}
22... Bxd3+ {[%clk 0:02:05.3]} 23. Kg1 {[%clk 0:02:03.9]} 23... Bxb1 {[%clk
0:02:04.7]} 0-1

[Event "Late-Titled-Tuesday-Blitz-May-28-2024"]
[Site "Chess.com"]
[Date "2024.05.28"]
[Round "1"]
[White "swayamsm"]
[Black "Lavandum24"]
[Result "1-0"]
[WhiteElo "2539"]
[BlackElo "1785"]
[TimeControl "180+1"]
[EndTime "14:03:08 PDT"]
[Termination "swayamsm won by checkmate"]

1. d4 {[%clk 0:02:59.2]} 1... Nc6 {[%clk 0:02:59.6]} 2. d5 {[%clk 0:02:54.2]}
2... Ne5 {[%clk 0:02:59.4]} 3. e4 {[%clk 0:02:52.9]} 3... Ng6 {[%clk 0:02:55.8]}
4. h4 {[%clk 0:02:49.4]} 4... h5 {[%clk 0:02:52.9]} 5. Be2 {[%clk 0:02:48.7]}
5... Nf6 {[%clk 0:02:49.6]} 6. Nc3 {[%clk 0:02:49.2]} 6... e5 {[%clk 0:02:49.3]}
7. Bg5 {[%clk 0:02:46.7]} 7... Be7 {[%clk 0:02:41.1]} 8. g3 {[%clk 0:02:42.4]}
8... d6 {[%clk 0:02:35]} 9. Bxf6 {[%clk 0:02:41.4]} 9... gxf6 {[%clk 0:02:33.8]}
10. Bxh5 {[%clk 0:02:41.4]} 10... f5 {[%clk 0:02:31.8]} 11. Bf3 {[%clk
0:02:34.7]} 11... f4 {[%clk 0:02:30.4]} 12. Qd2 {[%clk 0:02:31.6]} 12... fxg3
{[%clk 0:02:26.3]} 13. fxg3 {[%clk 0:02:32.5]} 13... f5 {[%clk 0:02:24.5]} 14.
O-O-O {[%clk 0:02:28.1]} 14... f4 {[%clk 0:02:23.2]} 15. h5 {[%clk 0:02:25.7]}
15... Nf8 {[%clk 0:02:20]} 16. gxf4 {[%clk 0:02:24.3]} 16... exf4 {[%clk
0:02:20.3]} 17. h6 {[%clk 0:02:18.8]} 17... Bg5 {[%clk 0:02:18.6]} 18. Bh5+
{[%clk 0:02:15.3]} 18... Ke7 {[%clk 0:02:18.6]} 19. Nf3 {[%clk 0:02:13.6]} 19...
Bxh6 {[%clk 0:02:16.8]} 20. Qd4 {[%clk 0:02:08.5]} 20... Nd7 {[%clk 0:02:14.3]}
21. e5 {[%clk 0:02:07]} 21... Bg7 {[%clk 0:02:04.8]} 22. exd6+ {[%clk 0:02:06]}
22... Kxd6 {[%clk 0:02:03.7]} 23. Qb4+ {[%clk 0:01:59.2]} 23... c5 {[%clk
0:01:58.4]} 24. dxc6+ {[%clk 0:02:00.1]} 24... Kxc6 {[%clk 0:01:58.6]} 25. Qd6#
{[%clk 0:02:00.3]} 1-0

[Event "Late-Titled-Tuesday-Blitz-May-28-2024"]
[Site "Chess.com"]
[Date "2024.05.28"]
[Round "1"]
[White "Eloist"]
[Black "BAS8892"]
[Result "1-0"]
[WhiteElo "2451"]
[BlackElo "2736"]
[TimeControl "180+1"]
[EndTime "14:03:19 PDT"]
[Termination "Eloist won by resignation"]

1. e4 {[%clk 0:03:00.1]} 1... e6 {[%clk 0:02:59.6]} 2. d4 {[%clk 0:02:59.6]}
2... d5 {[%clk 0:02:59.7]} 3. Nd2 {[%clk 0:02:59.8]} 3... c5 {[%clk 0:02:59.5]}
4. exd5 {[%clk 0:02:59.7]} 4... exd5 {[%clk 0:02:59.2]} 5. Bb5+ {[%clk
0:02:59.4]} 5... Nc6 {[%clk 0:02:59.2]} 6. Ngf3 {[%clk 0:02:58.7]} 6... Bd6
{[%clk 0:02:58.9]} 7. dxc5 {[%clk 0:02:57.7]} 7... Bxc5 {[%clk 0:02:59.1]} 8.
O-O {[%clk 0:02:54.3]} 8... Ne7 {[%clk 0:02:58.7]} 9. Nb3 {[%clk 0:02:53.8]}
9... Bd6 {[%clk 0:02:58]} 10. Bg5 {[%clk 0:02:50.3]} 10... O-O {[%clk 0:02:56]}
11. Bh4 {[%clk 0:02:49.9]} 11... Nf5 {[%clk 0:02:54.3]} 12. Bxd8 {[%clk
0:02:49]} 12... Rxd8 {[%clk 0:02:53.5]} 13. Nbd4 {[%clk 0:02:45.9]} 13... Ncxd4
{[%clk 0:02:51.3]} 14. Nxd4 {[%clk 0:02:45.8]} 14... Nxd4 {[%clk 0:02:50.7]} 15.
Qxd4 {[%clk 0:02:45.3]} 15... Be6 {[%clk 0:02:51.3]} 16. Bd3 {[%clk 0:02:43.1]}
16... h6 {[%clk 0:02:50.7]} 17. Rfe1 {[%clk 0:02:42.6]} 17... Rac8 {[%clk
0:02:50.2]} 18. c3 {[%clk 0:02:42]} 18... a6 {[%clk 0:02:50.2]} 19. Rad1 {[%clk
0:02:37.3]} 19... Bc5 {[%clk 0:02:49.6]} 20. Qf4 {[%clk 0:02:36.2]} 20... Rc6
{[%clk 0:02:49.1]} 21. Bf5 {[%clk 0:02:32.1]} 21... Bxf5 {[%clk 0:02:47.9]} 22.
Qxf5 {[%clk 0:02:32.1]} 22... Rf6 {[%clk 0:02:48.1]} 23. Re5 {[%clk 0:02:18.1]}
23... Rxf5 {[%clk 0:02:44.2]} 24. Rxf5 {[%clk 0:02:17.9]} 24... b6 {[%clk
0:02:37.1]} 25. Rfxd5 {[%clk 0:02:16.1]} 25... Re8 {[%clk 0:02:36.2]} 26. Rd8
{[%clk 0:02:15.9]} 26... Kf8 {[%clk 0:02:35.4]} 27. Kf1 {[%clk 0:02:13.9]} 27...
a5 {[%clk 0:02:35]} 28. R1d7 {[%clk 0:02:12.7]} 28... h5 {[%clk 0:02:33.2]} 29.
Rxe8+ {[%clk 0:02:11.6]} 29... Kxe8 {[%clk 0:02:33]} 30. Rb7 {[%clk 0:02:11.7]}
30... h4 {[%clk 0:02:32.6]} 31. Ke2 {[%clk 0:02:11.7]} 31... g5 {[%clk
0:02:32.1]} 32. b4 {[%clk 0:02:10.3]} 32... axb4 {[%clk 0:02:30.9]} 33. cxb4
{[%clk 0:02:10.5]} 33... Bxb4 {[%clk 0:02:31.2]} 34. Rxb6 {[%clk 0:02:10.8]}
34... Be7 {[%clk 0:02:31.8]} 35. Rb7 {[%clk 0:02:09.2]} 35... Bd6 {[%clk
0:02:31.7]} 36. a4 {[%clk 0:02:09.1]} 36... Bxh2 {[%clk 0:02:30.9]} 37. a5
{[%clk 0:02:08.7]} 37... Kd8 {[%clk 0:02:29.6]} 38. a6 {[%clk 0:02:08.2]} 38...
Kc8 {[%clk 0:02:29.7]} 39. Rxf7 {[%clk 0:02:03]} 39... Kb8 {[%clk 0:02:29.3]}
40. Kf3 {[%clk 0:02:00.3]} 40... Bg1 {[%clk 0:02:28.1]} 41. Kg4 {[%clk 0:02:00]}
1-0

[Event "Late-Titled-Tuesday-Blitz-May-28-2024"]
[Site "Chess.com"]
[Date "2024.05.28"]
[Round "1"]
[White "Lennis93"]
[Black "Smiechu"]
[Result "1-0"]
[WhiteElo "2781"]
[BlackElo "2444"]
[TimeControl "180+1"]
[EndTime "14:03:49 PDT"]
[Termination "Lennis93 won by checkmate"]

1. b3 {[%clk 0:02:59.4]} 1... e5 {[%clk 0:02:59.5]} 2. Bb2 {[%clk 0:03:00.1]}
2... Nc6 {[%clk 0:03:00.1]} 3. e3 {[%clk 0:03:00.6]} 3... Nf6 {[%clk 0:03:00.7]}
4. Nf3 {[%clk 0:03:01.2]} 4... Bd6 {[%clk 0:02:58.9]} 5. d4 {[%clk 0:02:59.6]}
5... exd4 {[%clk 0:02:55]} 6. exd4 {[%clk 0:02:59.8]} 6... Qe7+ {[%clk
0:02:54.6]} 7. Be2 {[%clk 0:02:59.8]} 7... O-O {[%clk 0:02:53.3]} 8. O-O {[%clk
0:03:00]} 8... b6 {[%clk 0:02:53.5]} 9. Re1 {[%clk 0:02:59.1]} 9... Qd8 {[%clk
0:02:47.8]} 10. d5 {[%clk 0:02:57.8]} 10... Ne7 {[%clk 0:02:40.7]} 11. Bxf6
{[%clk 0:02:56.5]} 11... gxf6 {[%clk 0:02:41.6]} 12. c4 {[%clk 0:02:53.9]} 12...
Be5 {[%clk 0:02:37.5]} 13. Nbd2 {[%clk 0:02:48]} 13... Bxa1 {[%clk 0:02:34.7]}
14. Qxa1 {[%clk 0:02:48.9]} 14... Ng6 {[%clk 0:02:33.9]} 15. Ne4 {[%clk
0:02:48.9]} 15... Kg7 {[%clk 0:02:29.3]} 16. d6 {[%clk 0:02:26.9]} 16... cxd6
{[%clk 0:02:25.6]} 17. Nxd6 {[%clk 0:02:25.5]} 17... Qe7 {[%clk 0:02:11.7]} 18.
Nf5+ {[%clk 0:02:24.8]} 18... Kg8 {[%clk 0:02:06.5]} 19. Nxe7+ {[%clk
0:02:25.7]} 19... Nxe7 {[%clk 0:02:06.7]} 20. Qxf6 {[%clk 0:02:24.9]} 20... Ng6
{[%clk 0:02:06.8]} 21. h4 {[%clk 0:02:21.2]} 21... Re8 {[%clk 0:02:00.3]} 22.
Bd3 {[%clk 0:02:15.6]} 22... Bb7 {[%clk 0:01:53.9]} 23. h5 {[%clk 0:02:13]}
23... Nf8 {[%clk 0:01:49.8]} 24. h6 {[%clk 0:02:11.6]} 24... Rxe1+ {[%clk
0:01:47.4]} 25. Kh2 {[%clk 0:01:56.8]} 25... Ne6 {[%clk 0:01:45.6]} 26. Bxh7+
{[%clk 0:01:51.4]} 26... Kxh7 {[%clk 0:01:36.1]} 27. Ng5+ {[%clk 0:01:49.8]}
27... Nxg5 {[%clk 0:01:31]} 28. Qg7# {[%clk 0:01:49.3]} 1-0

[Event "Late-Titled-Tuesday-Blitz-May-28-2024"]
[Site "Chess.com"]
[Date "2024.05.28"]
[Round "1"]
[White "FredddieCroderg"]
[Black "djano"]
[Result "0-1"]
[WhiteElo "2284"]
[BlackElo "2599"]
[TimeControl "180+1"]
[EndTime "14:04:01 PDT"]
[Termination "djano won by resignation"]

1. e4 {[%clk 0:02:58.1]} 1... c5 {[%clk 0:02:59.9]} 2. Nf3 {[%clk 0:02:57.7]}
2... g6 {[%clk 0:02:59.9]} 3. Bc4 {[%clk 0:02:56.7]} 3... Bg7 {[%clk 0:02:59.7]}
4. O-O {[%clk 0:02:56.6]} 4... Nc6 {[%clk 0:03:00]} 5. c3 {[%clk 0:02:55]} 5...
d6 {[%clk 0:03:00.4]} 6. h3 {[%clk 0:02:49.7]} 6... Nf6 {[%clk 0:03:00]} 7. Re1
{[%clk 0:02:48.4]} 7... e5 {[%clk 0:02:58.3]} 8. d3 {[%clk 0:02:36]} 8... O-O
{[%clk 0:02:57.8]} 9. a4 {[%clk 0:02:34.6]} 9... Nd7 {[%clk 0:02:52.2]} 10. Bg5
{[%clk 0:02:27.8]} 10... Bf6 {[%clk 0:02:52.4]} 11. Bh6 {[%clk 0:02:23.4]} 11...
Bg7 {[%clk 0:02:52.6]} 12. Bg5 {[%clk 0:02:23.2]} 12... Bf6 {[%clk 0:02:52.9]}
13. Bh6 {[%clk 0:02:23.1]} 13... Re8 {[%clk 0:02:52.1]} 14. Qd2 {[%clk
0:02:16.9]} 14... Nb6 {[%clk 0:02:50.9]} 15. Ba2 {[%clk 0:02:14.8]} 15... Be6
{[%clk 0:02:51.1]} 16. Bxe6 {[%clk 0:02:12.8]} 16... Rxe6 {[%clk 0:02:51.4]} 17.
a5 {[%clk 0:02:11]} 17... Nd7 {[%clk 0:02:49.4]} 18. Ng5 {[%clk 0:02:06.7]}
18... Bxg5 {[%clk 0:02:45.7]} 19. Bxg5 {[%clk 0:02:05.1]} 19... f6 {[%clk
0:02:45.8]} 20. Be3 {[%clk 0:02:03.9]} 20... Nxa5 {[%clk 0:02:45.1]} 21. d4
{[%clk 0:01:59.8]} 21... Nb3 {[%clk 0:02:41.6]} 22. Qd3 {[%clk 0:01:54]} 22...
Nxa1 {[%clk 0:02:40.4]} 23. Qc4 {[%clk 0:01:51.8]} 23... Nf8 {[%clk 0:02:32.1]}
24. Nd2 {[%clk 0:01:49.6]} 24... Nc2 {[%clk 0:02:28.5]} 25. Rd1 {[%clk
0:01:44.5]} 25... Nxe3 {[%clk 0:02:27.5]} 26. fxe3 {[%clk 0:01:44.8]} 26... cxd4
{[%clk 0:02:27.9]} 27. exd4 {[%clk 0:01:43.8]} 27... exd4 {[%clk 0:02:23.4]} 28.
Nf3 {[%clk 0:01:42]} 28... Rc8 {[%clk 0:02:16.9]} 29. Qb3 {[%clk 0:01:39.3]}
29... dxc3 {[%clk 0:01:59.6]} 30. Nd4 {[%clk 0:01:27.5]} 30... c2 {[%clk
0:01:59.8]} 0-1

[Event "Late-Titled-Tuesday-Blitz-May-28-2024"]
[Site "Chess.com"]
[Date "2024.05.28"]
[Round "1"]
[White "Sinquefield"]
[Black "HansOnTwitch"]
[Result "0-1"]
[WhiteElo "2536"]
[BlackElo "3132"]
[TimeControl "180+1"]
[EndTime "14:04:05 PDT"]
[Termination "HansOnTwitch won by resignation"]

1. d4 {[%clk 0:03:00.9]} 1... Nf6 {[%clk 0:02:59.2]} 2. Nf3 {[%clk 0:03:00.8]}
2... b6 {[%clk 0:02:58.8]} 3. Bg5 {[%clk 0:03:00]} 3... Bb7 {[%clk 0:02:57.4]}
4. Nbd2 {[%clk 0:03:00.5]} 4... g6 {[%clk 0:02:53.9]} 5. e3 {[%clk 0:03:00.3]}
5... Bg7 {[%clk 0:02:54.5]} 6. Be2 {[%clk 0:02:59.3]} 6... O-O {[%clk
0:02:54.5]} 7. O-O {[%clk 0:02:59.9]} 7... d6 {[%clk 0:02:55.3]} 8. c3 {[%clk
0:03:00.2]} 8... Nbd7 {[%clk 0:02:55.9]} 9. Re1 {[%clk 0:02:59.2]} 9... e5
{[%clk 0:02:56.5]} 10. dxe5 {[%clk 0:02:58.7]} 10... dxe5 {[%clk 0:02:57.4]} 11.
e4 {[%clk 0:02:59.3]} 11... h6 {[%clk 0:02:57.1]} 12. Bxf6 {[%clk 0:02:58.4]}
12... Qxf6 {[%clk 0:02:55.7]} 13. Qc2 {[%clk 0:02:59]} 13... Qe7 {[%clk
0:02:54.4]} 14. Rad1 {[%clk 0:02:58.1]} 14... Nc5 {[%clk 0:02:49.1]} 15. Bc4
{[%clk 0:02:56]} 15... Rad8 {[%clk 0:02:45.1]} 16. b4 {[%clk 0:02:55.8]} 16...
Ne6 {[%clk 0:02:44.4]} 17. Nf1 {[%clk 0:02:47.2]} 17... h5 {[%clk 0:02:30.3]}
18. Ne3 {[%clk 0:02:46]} 18... c6 {[%clk 0:02:30.2]} 19. b5 {[%clk 0:02:35.5]}
19... cxb5 {[%clk 0:02:25.4]} 20. Bd5 {[%clk 0:02:35.8]} 20... Nc5 {[%clk
0:02:17.9]} 21. Bxb7 {[%clk 0:02:33.6]} 21... Qxb7 {[%clk 0:02:18.8]} 22. Nd5
{[%clk 0:02:33.7]} 22... f5 {[%clk 0:02:18.4]} 23. Ng5 {[%clk 0:02:31.9]} 23...
fxe4 {[%clk 0:02:18]} 24. c4 {[%clk 0:02:23]} 24... Nd3 {[%clk 0:02:12.5]} 25.
Rxd3 {[%clk 0:02:09.8]} 25... exd3 {[%clk 0:02:10.5]} 26. Qxd3 {[%clk
0:02:10.1]} 26... Rf5 {[%clk 0:02:10]} 27. Ne6 {[%clk 0:01:53.3]} 27... Rd7
{[%clk 0:02:03.7]} 28. cxb5 {[%clk 0:01:22.9]} 28... Qxd5 {[%clk 0:02:02.2]} 0-1

[Event "Late-Titled-Tuesday-Blitz-May-28-2024"]
[Site "Chess.com"]
[Date "2024.05.28"]
[Round "1"]
[White "NikaVolkov"]
[Black "Robert_Oros"]
[Result "1-0"]
[WhiteElo "2755"]
[BlackElo "2432"]
[TimeControl "180+1"]
[EndTime "14:04:14 PDT"]
[Termination "NikaVolkov won by resignation"]

1. d4 {[%clk 0:03:00.9]} 1... e6 {[%clk 0:02:58.6]} 2. Nf3 {[%clk 0:03:01.1]}
2... f5 {[%clk 0:02:58.6]} 3. c4 {[%clk 0:03:01.6]} 3... Nf6 {[%clk 0:02:59]} 4.
Nc3 {[%clk 0:03:02]} 4... Bb4 {[%clk 0:02:58.3]} 5. Qb3 {[%clk 0:03:02.1]} 5...
c5 {[%clk 0:02:52.4]} 6. a3 {[%clk 0:03:00.9]} 6... Bxc3+ {[%clk 0:02:51.4]} 7.
Qxc3 {[%clk 0:02:57.9]} 7... cxd4 {[%clk 0:02:47]} 8. Nxd4 {[%clk 0:02:58.8]}
8... Nc6 {[%clk 0:02:43.7]} 9. e3 {[%clk 0:02:57.9]} 9... O-O {[%clk 0:02:41.9]}
10. Be2 {[%clk 0:02:57.4]} 10... d6 {[%clk 0:02:34.4]} 11. O-O {[%clk
0:02:55.9]} 11... e5 {[%clk 0:02:31.8]} 12. Nf3 {[%clk 0:02:54.4]} 12... a5
{[%clk 0:02:27.2]} 13. b3 {[%clk 0:02:53.8]} 13... Qe7 {[%clk 0:02:24]} 14. Bb2
{[%clk 0:02:54]} 14... Ne4 {[%clk 0:02:22.1]} 15. Qc2 {[%clk 0:02:53.8]} 15...
Nc5 {[%clk 0:02:15.4]} 16. Rad1 {[%clk 0:02:52]} 16... f4 {[%clk 0:02:09.9]} 17.
Bc3 {[%clk 0:02:27.5]} 17... Bf5 {[%clk 0:02:04.6]} 18. Qb2 {[%clk 0:02:26]}
18... g5 {[%clk 0:01:52.3]} 19. Ne1 {[%clk 0:02:13.9]} 19... Ne4 {[%clk
0:01:45.4]} 20. f3 {[%clk 0:01:58.3]} 20... Nxc3 {[%clk 0:01:42.6]} 21. Qxc3
{[%clk 0:01:59.2]} 21... fxe3 {[%clk 0:01:40.9]} 22. Qxe3 {[%clk 0:02:00.1]}
22... Rae8 {[%clk 0:01:34.2]} 23. Bd3 {[%clk 0:01:59]} 23... Nd4 {[%clk
0:01:28.7]} 24. Bxf5 {[%clk 0:01:50.6]} 24... Rxf5 {[%clk 0:01:28.4]} 25. Rf2
{[%clk 0:01:44.1]} 25... Qf6 {[%clk 0:01:21.4]} 26. Rxd4 {[%clk 0:01:43]} 1-0